Cogmind - Beta 16 @@@ ROGUE MODE // 2026.01.02 @ 21:48:35 Player: KZ_RAD Result: Destroyed by H-55 Commando with Assault Rifle Performance ------------- Evolutions (2) 1000 Regions Visited (3) 600 Robots Destroyed (21) 105 Value Destroyed (555) 555 Prototype IDs (2) 40 Alien Tech Used (0) 0 Bonus (0) 0 TOTAL SCORE: 2300 Bonus ------- None Cogmind --------- Core Integrity 0/550 Matter 281/300 Energy 57/100 System Corruption 0% Temperature Cool (0) Movement Core (100) Ox1 Location -8/Materials Parts ------- > --- POWER (1) -------- (None) > --- PROPULSION (2) --- (None) > --- UTILITY (4) ------ Medium Storage Unit Weight Redist. System > --- WEAPON (4) ------- (None) > --- INVENTORY (10) --- Particle Charger Hardlight Generator Hardlight Generator Heavy Particle Cannon Heavy Particle Cannon Light Assault Rifle Light Assault Rifle Peak State ------------ > --- POWER ------------ Light Nuclear Core > --- PROPULSION ------- Armored Wheel Armored Wheel > --- UTILITY ---------- Heat Sink Medium Storage Unit Weight Redist. System Targeting Computer > --- WEAPON ----------- Heavy Particle Cannon Heavy Particle Cannon > --- INVENTORY -------- Light Ion Engine Wheel Wheel Particle Charger Hardlight Generator Hardlight Generator Heavy Particle Cannon Heavy Particle Cannon Light Assault Rifle Light Assault Rifle [Rating: 20] Favorites ----------- Power Ion Engine Engine Ion Engine Power Core Light Nuclear Core Propulsion Armored Wheel Wheel Armored Wheel Utility Medium Storage Unit Device Weight Redist. System Storage Medium Storage Unit Processor Targeting Computer Weapon Assault Rifle Energy Cannon Heavy Particle Cannon Ballistic Gun Assault Rifle Build | -11 -10 -9 -8 ------- Run | Yrd Mat Mat Mat Slots Evolved 4 | . . 2 2 Power . | . . . . Propulsion . | . . . . Utility 2 | . . . 2 Weapon 2 | . . 2 . Parts Attached 25 | 6 2 7 10 Power 3 | 1 . . 2 Engine 2 | 1 . . 1 Core 1 | . . . 1 Reactor . | . . . . Propulsion 7 | 2 . 3 2 Treads . | . . . . Leg . | . . . . Wheel 7 | 2 . 3 2 Hover . | . . . . Flight . | . . . . Utility 6 | 1 1 2 2 Device 3 | . 1 . 2 Storage 2 | 1 . 1 . Processor 1 | . . 1 . Hackware . | . . . . Protection . | . . . . Artifact . | . . . . Weapon 9 | 2 1 2 4 Energy Gun . | . . . . Energy Cannon 4 | . . . 4 Ballistic Gun 5 | 2 1 2 . Ballistic Cannon . | . . . . Launcher . | . . . . Special Weapon . | . . . . Impact Weapon . | . . . . Slashing Weapon . | . . . . Piercing Weapon . | . . . . Special Melee Weapon . | . . . . Unidentified Prototypes . | . . . . Parts Lost 8 | . . . 8 Power 2 | . . . 2 Propulsion 3 | . . . 3 Utility 1 | . . . 1 Weapon 2 | . . . 2 Highest Loss Streak 5 | . . . 5 To Critical Strikes . | . . . . Average Backups 6 | . 2 6 7 Power . | . 1 1 . Propulsion . | . . . . Utility 1 | . . 1 2 Weapon 3 | . 1 4 4 Tool/Special . | . . . . Unused Backups 5 | . . . 5 Power . | . . . . Propulsion 1 | . . . 1 Utility 3 | . . . 3 Weapon 1 | . . . 1 Tool/Special . | . . . . Average Slot Usage (%) 88 | . 97 98 74 Engine 8 | . 14 11 4 Core 1 | . . . 4 Wheel 20 | . 28 20 17 Device 6 | . 11 . 11 Storage 10 | . 14 11 9 Processor 7 | . . 10 6 Energy Cannon 4 | . . . 11 Ballistic Gun 27 | . 28 43 10 Peak Build Rating 20 | 6 7 13 20 Average Rating 11 | 4 6 11 15 On Entrance 6 | . 6 7 13 Avg Prop Armor Cover (%) . | . . . . Naked Turns . | . . . . Heaviest Build 28 | 13 15 23 28 Greatest Support 30 | 26 26 26 30 Greatest Overweight (x) 7 | . . 7 1 Average Overweight (x) . | . . . . Largest Inventory Capacity 10 | 8 8 10 10 Average Capacity 9 | 6 8 9 10 Most Carried 10 | 2 5 10 10 Average Carried 6 | . 2 7 7 Final Capacity 10 | 8 8 10 10 Final Carried 9 | 1 5 9 7 Class Distribution -------------------- 51% | Gunner 44% | Mutant 3% | Skirmisher Dominant Class ---------------- Mutant | -10/Materials Gunner | -9/Materials Mutant | -8/Materials Resources | -11 -10 -9 -8 ----------- Run | Yrd Mat Mat Mat Matter Collected 834 | 236 70 190 338 Remotely . | . . . . Salvage Created 770 | . 55 278 437 Parts 49 | . 5 19 25 Haulers Intercepted 1 | . . . 1 Recyclers Shooed . | . . . . Parts Field Recycled . | . . . . Retrieved Matter . | . . . . Parts Self-Destructed . | . . . . Prevented . | . . . . Parts Restored . | . . . . Kills | -11 -10 -9 -8 ------- Run | Yrd Mat Mat Mat Combat Hostiles Destroyed 13 | . 3 5 5 Guns 11 | . 3 5 3 Cannons 2 | . . . 2 Classes Destroyed 8 | . 1 4 3 Worker 2 | . . . 2 Builder 2 | . . 1 1 Hauler 1 | . . . 1 Watcher 3 | . . 1 2 Swarmer 3 | . 3 . . Grunt 7 | . . 4 3 Sentry 2 | . . 1 1 Hunter 1 | . . . 1 Best Kill Streak 4 | . 3 3 4 Combat Bots Only 3 | . 3 3 2 Max Kills in Single Turn 2 | . 1 2 2 Gunslinging 1 | . . 1 1 Exploded . | . . . . Melee . | . . . . Uniques/NPCs Destroyed . | . . . . Combat | -11 -10 -9 -8 -------- Run | Yrd Mat Mat Mat Hostile Shots Fired 132 | . 7 14 111 Missed 28 | . 2 1 25 Hits 104 | . 5 13 86 Projectile 104 | . 5 13 86 Critical Strikes 5 | . . . 5 Damage Taken 1886 | . 45 256 1585 Core 666 | . . 116 550 Absorbed by Shields . | . . . . Regen/Repaired (Parts) 42 | . . . 42 Core Remaining (%) 90 | 100 100 71 . Volleys Fired 61 | . 5 23 33 Largest 4 | . 2 4 4 Hottest 150 | . 40 80 150 Shots Fired 192 | . 10 92 90 Gun 150 | . 10 92 48 Cannon 42 | . . . 42 Launcher . | . . . . Special . | . . . . Kinetic 150 | . 10 92 48 Thermal 42 | . . . 42 Explosive . | . . . . Electromagnetic . | . . . . Robot Hit Streak 18 | . 3 7 18 Robot Miss Streak 5 | . 2 3 5 Penetration Max . | . . . . Secondary Targets 4 | . 1 2 1 Max Gunslinging Chain 1 | . 1 1 1 Shots Hit Robots 85 | . 6 26 53 Core Hits 38 | . 3 14 21 Critical Kills . | . . . . Critical Parts Destroyed . | . . . . Critical Strikes . | . . . . Melee Attacks . | . . . . Impact . | . . . . Slashing . | . . . . Piercing . | . . . . Sneak Attacks . | . . . . Combat Hostiles . | . . . . Follow-up Attacks . | . . . . Damage Inflicted 1371 | . 67 328 976 Guns 808 | . 67 328 413 Cannons 550 | . . . 550 Explosions . | . . . . Melee . | . . . . Ramming 13 | . . . 13 Kinetic 808 | . 67 328 413 Thermal 550 | . . . 550 Explosive . | . . . . Electromagnetic . | . . . . Impact . | . . . . Slashing . | . . . . Piercing . | . . . . Highest Corruption . | . . . . Average Corruption . | . . . . Corruption Purged . | . . . . Corruption Blocked . | . . . . Overload Shots . | . . . . Overflow Damage . | . . . . Projectiles . | . . . . Explosions . | . . . . Melee . | . . . . Knockbacks . | . . . . Impact . | . . . . Kinetic . | . . . . Secondary . | . . . . Self-Inflicted Damage 6 | . . . 6 Shots . | . . . . Rammed 1 | . . . 1 Targets Rammed 1 | . . . 1 Kicked . | . . . . Crushed . | . . . . Highest Temperature 414 | . . 78 414 Average Temperature 95 | . . 18 144 Received Heat Transfer 576 | . . 90 486 Effects 2 | . . . 2 Shutdowns 1 | . . . 1 Energy Bleed 1 | . . . 1 Siege Activations . | . . . . Martial Activations . | . . . . Shielding Activations . | . . . . Robots Disrupted . | . . . . Combat Hostiles . | . . . . Robots Corrupted . | . . . . Combat Hostiles . | . . . . Parts Fried . | . . . . Impact Corruptions . | . . . . Robots Melted . | . . . . Combat Hostiles . | . . . . Parts Melted . | . . . . Heat Transferred 814 | . . . 814 Parts Sabotaged . | . . . . Parts Stolen . | . . . . Parts Stripped . | . . . . Power Chain Reactions . | . . . . Alert | -11 -10 -9 -8 ------- Run | Yrd Mat Mat Mat Maximum Alert Level . | . . . . Low Security (%) 100 | 100 100 100 100 Level 1 . | . . . . Level 2 . | . . . . Level 3 . | . . . . Level 4 . | . . . . Level 5 . | . . . . High Security . | . . . . Max Security . | . . . . Peak Influence 115 | . 70 115 57 Initial 16 | . . 16 . Average 27 | . 24 42 15 Influence Increases 495 | . 70 215 210 Destroy 0b10 Robot/C 260 | . 60 100 100 Destroy 0b10 Robot/NC 40 | . . 10 30 Destroy Leader 58 | . 10 22 26 Successful Hack 29 | . . 23 6 Disable Machine 15 | . . 15 . Destroy Structure 18 | . . . 18 Lose Combat Pursuer 75 | . . 45 30 Influence Decreases 495 | . 30 255 210 Entered New Map 24 | . . 24 . Time Decay 355 | . 30 151 174 Lost Part 36 | . . . 36 Purge Threat 80 | . . 80 . Squads Dispatched 5 | . 1 1 3 Investigation 2 | . . 1 1 Extermination . | . . . . Reinforcement 3 | . 1 . 2 Assault . | . . . . Garrison . | . . . . Intercept . | . . . . Searches Triggered . | . . . . Construction Impeded 1 | . . . 1 Haulers Reinforced . | . . . . Active Scanning Responses . | . . . . Cargo Convoy Interrupts . | . . . . Stealth | -11 -10 -9 -8 --------- Run | Yrd Mat Mat Mat Distress Signals 1 | . . . 1 Communications Jammed . | . . . . Distress Signals . | . . . . Times Spotted 38 | . 4 10 24 Peak Tracking Total 7 | . 3 3 7 Tactical Retreats 3 | . . 1 2 Traps | -11 -10 -9 -8 ------- Run | Yrd Mat Mat Mat Traps Triggered 2 | . . 2 . Indirectly . | . . . . Trap Hack Attempts . | . . . . Triggered . | . . . . Disarmed . | . . . . Reprogrammed . | . . . . Reused . | . . . . Traps Extracted . | . . . . Installed . | . . . . Triggered . | . . . . Machines | -11 -10 -9 -8 ---------- Run | Yrd Mat Mat Mat Machines Disabled 1 | . . 1 . Max in Single Turn 1 | . . 1 . Garrison Access 1 | . . . 1 Machines Repaired . | . . . . Machines Dismantled . | . . . . Machines Sabotaged . | . . . . Overloaded Fab Kills . | . . . . Hacking | -11 -10 -9 -8 --------- Run | Yrd Mat Mat Mat Machines Accessed 10 | . . 6 4 Terminals 6 | . . 4 2 Fabricators . | . . . . Repair Stations 2 | . . 1 1 Recycling Units . | . . . . Scanalyzers 1 | . . 1 . Garrison Access 1 | . . . 1 Total Hacks 41 | . . 23 18 Successful 21 | . . 12 9 Failed 20 | . . 11 9 Catastrophic 1 | . . 1 . Database Lockouts . | . . . . Manual . | . . . . Terminals 20 | . . 13 7 Fabricators . | . . . . Repair Stations 9 | . . 3 6 Recycling Units . | . . . . Scanalyzers 7 | . . 7 . Garrison Access 5 | . . . 5 Terminal Hacks 9 | . . 6 3 Record 2 | . . 2 . Prototype ID Bank 1 | . . 1 . Alert Level 1 | . . 1 . Unreport Threat 1 | . . 1 . Locate Traps 1 | . . . 1 Dispatch Records 1 | . . 1 . Maintenance Status 1 | . . . 1 Zone Layout 1 | . . . 1 Fabricator Hacks . | . . . . Repair Station Hacks 6 | . . 1 5 Scan Component 4 | . . 1 3 Repair 2 | . . . 2 Recycling Unit Hacks . | . . . . Scanalyzer 5 | . . 5 . Insert Component 1 | . . 1 . Analyze 1 | . . 1 . Retrieve Study 3 | . . 3 . Garrison Access Hacks 1 | . . . 1 Seal Access 1 | . . . 1 Unauthorized Hacks . | . . . . Terminals . | . . . . Fabricators . | . . . . Repair Stations . | . . . . Recycling Units . | . . . . Scanalyzers . | . . . . Garrison Access . | . . . . Data Cores Recovered . | . . . . Used . | . . . . Hacking Detections 9 | . . 6 3 Full Trace Events 3 | . . 2 1 Feedback Events . | . . . . Feedback Blocked . | . . . . Robot Schematics Acquired . | . . . . Robots Built . | . . . . Authchips . | . . . . Time . | . . . . Total Robot Build Rating . | . . . . Part Schematics Acquired 1 | . . 1 . Parts Built . | . . . . Authchips . | . . . . Time . | . . . . Total Part Build Rating . | . . . . Part Studies Acquired 3 | . . 3 . Parts Repaired 2 | . . . 2 Time 76 | . . . 76 Parts Recycled . | . . . . Recycled Matter . | . . . . Retrieved Matter . | . . . . Retrieved Components . | . . . . Parts Scanalyzed 1 | . . 1 . Part Schematics Acquired 1 | . . 1 . Parts Damaged . | . . . . Bothacking | -11 -10 -9 -8 ------------ Run | Yrd Mat Mat Mat Used RIF Installer . | . . . . Robots Hacked . | . . . . Non-combat . | . . . . Combat . | . . . . Robot Hacks Applied . | . . . . Relay Couplers Released . | . . . . Fabnet Peak Effective % . | . . . . Robots Rewired . | . . . . Allies Hacked . | . . . . Hacks Repelled . | . . . . Allies | -11 -10 -9 -8 -------- Run | Yrd Mat Mat Mat Total Allies . | . . . . Largest Group . | . . . . Highest-Rated Group . | . . . . Highest-Rated Ally . | . . . . Total Orders . | . . . . Ally Attacks . | . . . . Total Damage . | . . . . Kills . | . . . . Allies Corrupted . | . . . . Allies Melted . | . . . . Intel | -11 -10 -9 -8 ------- Run | Yrd Mat Mat Mat Active Infowar (turns) 135 | . 112 23 . Terrain 135 | . 112 23 . Robot Analysis Total . | . . . . Derelict Logs Recovered . | . . . . Drone Launches . | . . . . Drone Recoveries . | . . . . Exploration | -11 -10 -9 -8 ------------- Run | Yrd Mat Mat Mat Turns Passed 1080 | 51 126 469 434 Spaces Moved 808 | 44 116 383 265 Core 7 | 4 . 3 . Treads . | . . . . Legs . | . . . . Wheels 801 | 40 116 380 265 Hover . | . . . . Flight . | . . . . Fastest Speed 50 | 50 90 85 70 Average Speed 89 | 86 90 92 87 Slowest Speed 400 | 90 90 400 105 Overloaded Moves . | . . . . Propulsion Burnouts . | . . . . Robots Hopped . | . . . . Potential Cave-ins . | . . . . Cave-ins Triggered . | . . . . Exploration Rate (%) 24 | 4 33 36 23 Regions Visited 3 Branch Regions . Pre-discovered Areas . | . . . . Known Exits Taken . | . . . . Unknown Exits Taken 3 | 1 1 1 . Scrap Searched . | . . . . Spaces Dug . | . . . . Terrain Destroyed 19 | . . . 19 Melee . | . . . . Projectile 19 | . . . 19 AOE . | . . . . Terrain Rammed . | . . . . Walls Destroyed . | . . . . Machines Disabled . | . . . . Actions | -11 -10 -9 -8 --------- Run | Yrd Mat Mat Mat Total 1026 | 56 127 443 400 Wait 89 | . . 15 74 Move 805 | 43 115 382 265 Hop . | . . . . Pick Up 32 | 7 5 11 9 Fast Attach . | . . . . Attach 23 | 6 1 6 10 Detach . | . . . . Swap 2 | . 1 1 . Drop 13 | . . 5 8 Fire 61 | . 5 23 33 Melee . | . . . . Ram 1 | . . . 1 Kick . | . . . . Crush . | . . . . Escape Stasis . | . . . . Rewire . | . . . . Trap . | . . . . Miscellaneous . | . . . . Route ------- -11/Scrapyard -10/Materials (discovered 2 exits: *Mat / [*Min]) -9/Materials -8/Materials History --------- Turn | Location | Event 13 | -11/Scrapyard | Discovered new exit (range 15) 52 | -11/Scrapyard | Entered Materials 129 | -10/Materials | Discovered new exit (range 13) 144 | -10/Materials | Discovered new exit (range 13) 178 | -10/Materials | Entered another Materials area 178 | -9/Materials | Evolved 2 slots: Weapon x2 502 | -9/Materials | Build established: Gunner 573 | -9/Materials | Discovered new exit (range 12) 647 | -9/Materials | Entered another Materials area 647 | -8/Materials | Evolved 2 slots: Utility x2 964 | -8/Materials | Repaired Hvy. Particle Cannon 989 | -8/Materials | Lost 3 parts (1p1n1u) 1002 | -8/Materials | Repaired Hvy. Particle Cannon 1060 | -8/Materials | Core integrity fell below 50% 1063 | -8/Materials | Build established: Mutant 1077 | -8/Materials | Core integrity fell below 20% 1081 | -8/Materials | Destroyed by H-55 Commando with Assault Rifle Last Messages --------------- Overheating: Energy bleed (-3). Penetrated by Slug. Wheel+ destroyed. Power failure, Lgt. Ion Engine shutdown. Penetrated by Slug. U-05 Engineer builds a Wall. H-55 Commando suffers critical hit (Burn). Penetrated by Slug. Hvy. Particle Cannon destroyed. Lgt. Ion Engine destroyed. Critical hit (Burn: +37). M-13 Machinist repairs G-47 Trooper. Penetrated by Slug. Critical hit (Burn: +37). Wheel+ destroyed. Penetrated by Slug. M-13 Machinist repairs H-55 Commando. Hvy. Particle Cannon destroyed. Slug penetrates Repair Station. M-13 Machinist repairs G-47 Trooper. Map ----- +----------------------------------------------------+ | ???????????????????????????? | | ???????????????????????????? | | ???????????????????????????? | | ???????????????????????????? | | ???????????????????????????? | | ???????????????????????????? | | ?????????????????????? ????? | | ?????????????????????? ????? | | ?????????????????????? ????? | | ?????????????????????? ????? | | ?????????????????????? ????? | | ?????????????????????? ????? | | ?????????????????????? ????? | | ?????????????????????# #???? | | ????########?????????# #???? | | ????# #?????????+ #???? | | ????# #?????????# #???? | | ????# ""#?????????# #???? | | ????# T"#?????????# #???? | | ????# ""#????????## #???? | | ?????? ????####### #???? | | ???#####+#####?# #???? | | ###### % # #?# ###+####? | | ##### # gg #? | | == + """g#? | | !=![%#####+### Rm@#? | | ###### ! ! " # "" =#? | | ?????###%### # g h*#? | | ??????##*##? # Y! #? | | ????#### ###? ########? | | ##### # #? #??##???? | | # *###########???????? | | # [! ########## | | # [[ ## ] # | | + !]* "# " # | | # *% ## """# | | ### !!! ## """# | | #?# !!! # """# | | #?# !!! [! " "" # | | #?# = # """# | | #######= * # ! ""# | | # [[ # """# | | # =* # " # | | + # # | | #^^^ ######### | | # ##+########???????? | | # ## ?????????????? | | # ## ???????????? | | # ## #??????????? | | #+## ##!! #??????????? | +----------------------------------------------------+ Best States ------------- Heat Dissipation 41 Energy Generation 14 Energy Capacity 250 Matter Stores 300 Matter Capacity 300 Sight Range 16 Terrain Scan Range 14 Terrain Scan Density 10 Additional Mass Support 6 Evasion (%) 46 Targeting Accuracy 5 Item Schematics ----------------- Hardlight Generator | -9/Materials | Scanalyzed Robot Schematics ------------------ None Fabricated ------------ Nothing Repaired ---------- Hvy. Particle Cannon | 67% | -8/Materials Studied --------- Assault Rifle | -9/Materials | Hacked Wheel | -9/Materials | Hacked Ion Engine | -9/Materials | Hacked Alien Tech Used ----------------- None Achievements -------------- Everything Is Under Control Ghost 'Em Throw Away The Key Challenges ------------ None Game ------ Seed PitchforkFusionAutocannon Manual? 0 Play Time 00:25:01 Cumulative 3.6 hours Start 2026.01.02 @ 21:23:18 End 2026.01.02 @ 21:48:35 Sessions 1 Manual Loads 0 Difficulty Rogue Special Mode None Game No. 7 Rogue 7 Adventurer 0 Explorer 0 Win Type - Total 0 Types 0/0/0/0/0/0/0/0/0/0 Lore% 1 Gallery% 6 Achievement% 8 Wizard Run 0 Options --------- Layout 1 ASCII 0 Keyboard 0 Movement Mouse Keybinds 0 Fullscreen 1 Font 32/SmallcapsGlow Map View 50x35 Zoom Use 0% Tactical HUD 0 Map Filters NONE Filters NONE Steam 1 RUN: 0549a996-25f5-4887-9c99-72afb3c09a85